[Event "Early-Titled-Tuesday-Blitz-January-30-2024"]
[Site "Chess.com"]
[Date "2024.01.30"]
[Round "1"]
[White "Kotofeyca"]
[Black "NikitaShnadrygin"]
[Result "1-0"]
[WhiteElo "2390"]
[BlackElo "2676"]
[TimeControl "180+1"]
[EndTime "8:07:53 PST"]
[Termination "Kotofeyca won by resignation"]

1. d4 {[%clk 0:03:00.9]} 1... d5 {[%clk 0:02:59.7]} 2. c4 {[%clk 0:03:00.4]}
2... Nc6 {[%clk 0:02:58.4]} 3. cxd5 {[%clk 0:02:59.7]} 3... Qxd5 {[%clk
0:02:58.1]} 4. Nf3 {[%clk 0:03:00.6]} 4... e5 {[%clk 0:02:57.8]} 5. Nc3 {[%clk
0:02:58.1]} 5... Bb4 {[%clk 0:02:57.2]} 6. Bd2 {[%clk 0:02:52.3]} 6... Bxc3
{[%clk 0:02:57.4]} 7. Bxc3 {[%clk 0:02:49.3]} 7... e4 {[%clk 0:02:58]} 8. Nd2
{[%clk 0:02:43.9]} 8... e3 {[%clk 0:02:57.9]} 9. fxe3 {[%clk 0:02:41.7]} 9...
Nf6 {[%clk 0:02:58.4]} 10. Qb3 {[%clk 0:02:19.7]} 10... Be6 {[%clk 0:02:32.8]}
11. Qxb7 {[%clk 0:01:41.6]} 11... O-O {[%clk 0:02:04.4]} 12. Qxc7 {[%clk
0:01:36.2]} 12... Rfe8 {[%clk 0:01:50.8]} 13. Rg1 {[%clk 0:01:27.5]} 13... Bf5
{[%clk 0:01:41.6]} 14. Qf4 {[%clk 0:01:24.8]} 14... Qd7 {[%clk 0:01:23.8]} 15.
g4 {[%clk 0:01:17.2]} 15... Bg6 {[%clk 0:01:18.3]} 16. Bg2 {[%clk 0:01:11.7]}
16... Nd5 {[%clk 0:01:18.2]} 17. Bxd5 {[%clk 0:00:45.7]} 17... Qxd5 {[%clk
0:01:19.1]} 18. Qf3 {[%clk 0:00:39.8]} 18... Qb5 {[%clk 0:01:13.9]} 19. Kf2
{[%clk 0:00:27.5]} 19... Nb4 {[%clk 0:00:57.8]} 20. Bxb4 {[%clk 0:00:19.8]}
20... Qxb4 {[%clk 0:00:58.7]} 21. Nb3 {[%clk 0:00:19.3]} 21... a5 {[%clk
0:00:55.8]} 22. Rgc1 {[%clk 0:00:18.2]} 22... a4 {[%clk 0:00:55.7]} 23. Nc5
{[%clk 0:00:18.3]} 23... Qxb2 {[%clk 0:00:55.7]} 24. Kg1 {[%clk 0:00:14.1]}
24... Rad8 {[%clk 0:00:46.6]} 25. Nd3 {[%clk 0:00:13.9]} 25... Bxd3 {[%clk
0:00:37.8]} 26. exd3 {[%clk 0:00:13.5]} 26... Qd2 {[%clk 0:00:38.3]} 27. Re1
{[%clk 0:00:12.5]} 27... Qxd3 {[%clk 0:00:38]} 28. Rad1 {[%clk 0:00:12.6]} 28...
Qc2 {[%clk 0:00:35.6]} 29. Qf2 {[%clk 0:00:13.1]} 29... Qc4 {[%clk 0:00:34.4]}
30. e4 {[%clk 0:00:11.3]} 30... a3 {[%clk 0:00:30.6]} 31. h3 {[%clk 0:00:11.2]}
31... Rb8 {[%clk 0:00:30.8]} 32. Rd2 {[%clk 0:00:10]} 32... Rb4 {[%clk
0:00:29.9]} 33. e5 {[%clk 0:00:09.6]} 33... Reb8 {[%clk 0:00:28.5]} 34. d5
{[%clk 0:00:09.5]} 34... Rb2 {[%clk 0:00:28.8]} 35. Ree2 {[%clk 0:00:09.8]}
35... Qc1+ {[%clk 0:00:27.7]} 36. Kg2 {[%clk 0:00:10]} 36... Rb1 {[%clk
0:00:28.2]} 37. d6 {[%clk 0:00:09.3]} 37... Qh1+ {[%clk 0:00:28.1]} 38. Kg3
{[%clk 0:00:09.8]} 38... Rg1+ {[%clk 0:00:27.4]} 39. Kh4 {[%clk 0:00:10]} 39...
h6 {[%clk 0:00:21.3]} 40. Re3 {[%clk 0:00:09.7]} 40... Rb5 {[%clk 0:00:17.9]}
41. d7 {[%clk 0:00:07.1]} 41... Rf1 {[%clk 0:00:09.9]} 42. d8=Q+ {[%clk
0:00:08]} 42... Kh7 {[%clk 0:00:10.1]} 43. Qxf1 {[%clk 0:00:06.9]} 43... Qxf1
{[%clk 0:00:09.7]} 44. Qd3+ {[%clk 0:00:07.6]} 44... g6 {[%clk 0:00:09.4]} 45.
Qxf1 {[%clk 0:00:07.3]} 1-0

[Event "Early-Titled-Tuesday-Blitz-January-30-2024"]
[Site "Chess.com"]
[Date "2024.01.30"]
[Round "1"]
[White "Njal28"]
[Black "Baronessa08"]
[Result "1-0"]
[WhiteElo "3042"]
[BlackElo "2534"]
[TimeControl "180+1"]
[EndTime "8:07:57 PST"]
[Termination "Njal28 won on time"]

1. d4 {[%clk 0:02:56.9]} 1... d5 {[%clk 0:02:59.1]} 2. c4 {[%clk 0:02:56.8]}
2... dxc4 {[%clk 0:02:58.7]} 3. Nf3 {[%clk 0:02:56.8]} 3... Nf6 {[%clk
0:02:58.9]} 4. e3 {[%clk 0:02:57.4]} 4... e6 {[%clk 0:02:59]} 5. Bxc4 {[%clk
0:02:57.3]} 5... c5 {[%clk 0:02:59.3]} 6. O-O {[%clk 0:02:55.8]} 6... Nc6 {[%clk
0:02:59.5]} 7. Re1 {[%clk 0:02:47.3]} 7... Be7 {[%clk 0:02:47.4]} 8. Bd3 {[%clk
0:02:46.6]} 8... b6 {[%clk 0:02:38.1]} 9. dxc5 {[%clk 0:02:43.6]} 9... Bxc5
{[%clk 0:02:34.2]} 10. a3 {[%clk 0:02:42.9]} 10... Bb7 {[%clk 0:02:32.5]} 11. b4
{[%clk 0:02:42.3]} 11... Bd6 {[%clk 0:02:31.3]} 12. Bb2 {[%clk 0:02:42.8]} 12...
Qe7 {[%clk 0:02:31.1]} 13. Nbd2 {[%clk 0:02:42.4]} 13... Rd8 {[%clk 0:02:24.7]}
14. Qb3 {[%clk 0:02:39.5]} 14... O-O {[%clk 0:02:21]} 15. Rac1 {[%clk
0:02:35.5]} 15... h6 {[%clk 0:02:14.6]} 16. Ne4 {[%clk 0:02:31.6]} 16... Nxe4
{[%clk 0:02:11.9]} 17. Bxe4 {[%clk 0:02:32.5]} 17... Rc8 {[%clk 0:01:54.3]} 18.
Bb1 {[%clk 0:01:54.6]} 18... Nb8 {[%clk 0:01:44.3]} 19. Qd3 {[%clk 0:01:50.9]}
19... f5 {[%clk 0:01:31.7]} 20. Ba2 {[%clk 0:01:41.5]} 20... Bxf3 {[%clk
0:01:22.9]} 21. gxf3 {[%clk 0:01:38.1]} 21... Kh7 {[%clk 0:01:11.8]} 22. f4
{[%clk 0:01:20.6]} 22... Rcd8 {[%clk 0:00:55.7]} 23. Qc4 {[%clk 0:01:07.6]}
23... e5 {[%clk 0:00:53.6]} 24. h3 {[%clk 0:00:49.3]} 24... exf4 {[%clk
0:00:40.4]} 25. exf4 {[%clk 0:00:49]} 25... Qh4 {[%clk 0:00:40.5]} 26. Kg2
{[%clk 0:00:14.1]} 26... Bxf4 {[%clk 0:00:28.5]} 27. Rcd1 {[%clk 0:00:14]} 27...
Qg5+ {[%clk 0:00:26.5]} 28. Kf1 {[%clk 0:00:13.2]} 28... Rxd1 {[%clk 0:00:21.1]}
29. Rxd1 {[%clk 0:00:14.1]} 29... Bh2 {[%clk 0:00:21.2]} 30. Qc3 {[%clk
0:00:03.5]} 30... Qg1+ {[%clk 0:00:11.6]} 31. Ke2 {[%clk 0:00:03.8]} 31... Re8+
{[%clk 0:00:10.6]} 32. Kd2 {[%clk 0:00:04.1]} 32... Bf4+ {[%clk 0:00:10.2]} 33.
Kc2 {[%clk 0:00:04.2]} 33... Qg6 {[%clk 0:00:08.9]} 34. Kb1 {[%clk 0:00:04.2]}
34... Be5 {[%clk 0:00:08.1]} 35. Qc2 {[%clk 0:00:04.1]} 35... Bxb2 {[%clk
0:00:07.8]} 36. Qxb2 {[%clk 0:00:05]} 36... Nc6 {[%clk 0:00:06.4]} 37. Ka1
{[%clk 0:00:05]} 37... Ne5 {[%clk 0:00:06.1]} 38. Bb1 {[%clk 0:00:05.8]} 38...
Nf3 {[%clk 0:00:05.9]} 39. Qb3 {[%clk 0:00:05.2]} 39... Qf6+ {[%clk 0:00:05.6]}
40. Qb2 {[%clk 0:00:05.5]} 40... Ne5 {[%clk 0:00:06.1]} 41. f4 {[%clk
0:00:05.2]} 41... Nc4 {[%clk 0:00:05.2]} 42. Qxf6 {[%clk 0:00:05.7]} 42... gxf6
{[%clk 0:00:05.9]} 43. Bxf5+ {[%clk 0:00:06.6]} 43... Kg7 {[%clk 0:00:06.2]} 44.
Rd7+ {[%clk 0:00:07.1]} 44... Kf8 {[%clk 0:00:06.6]} 45. Rxa7 {[%clk 0:00:07.2]}
1-0

[Event "Early-Titled-Tuesday-Blitz-January-30-2024"]
[Site "Chess.com"]
[Date "2024.01.30"]
[Round "1"]
[White "inneremptiness"]
[Black "Shuvalov"]
[Result "1-0"]
[WhiteElo "2852"]
[BlackElo "2472"]
[TimeControl "180+1"]
[EndTime "8:07:58 PST"]
[Termination "inneremptiness won on time"]

1. e4 {[%clk 0:03:00.9]} 1... e6 {[%clk 0:03:00]} 2. d4 {[%clk 0:03:00.1]} 2...
d5 {[%clk 0:03:00.2]} 3. Bd3 {[%clk 0:03:00.9]} 3... c5 {[%clk 0:02:59.9]} 4.
exd5 {[%clk 0:02:59.5]} 4... exd5 {[%clk 0:03:00.8]} 5. Nf3 {[%clk 0:02:57.8]}
5... c4 {[%clk 0:03:00.2]} 6. Be2 {[%clk 0:02:58.4]} 6... Nf6 {[%clk 0:03:00.4]}
7. O-O {[%clk 0:02:59]} 7... Be7 {[%clk 0:02:59.2]} 8. b3 {[%clk 0:02:59.5]}
8... cxb3 {[%clk 0:02:59.4]} 9. axb3 {[%clk 0:03:00.4]} 9... O-O {[%clk
0:02:59.3]} 10. c4 {[%clk 0:03:01.1]} 10... Nc6 {[%clk 0:02:59.3]} 11. Nc3
{[%clk 0:03:01.7]} 11... Bf5 {[%clk 0:02:55.4]} 12. Bg5 {[%clk 0:03:00.9]} 12...
Nb4 {[%clk 0:02:49.1]} 13. Nh4 {[%clk 0:02:27.1]} 13... Bc2 {[%clk 0:02:41.3]}
14. Qd2 {[%clk 0:02:25.6]} 14... h6 {[%clk 0:02:16.5]} 15. Be3 {[%clk
0:02:11.2]} 15... Bxb3 {[%clk 0:01:59.5]} 16. c5 {[%clk 0:02:11.7]} 16... Bc4
{[%clk 0:01:43.2]} 17. Rfb1 {[%clk 0:02:11.8]} 17... a5 {[%clk 0:01:32.7]} 18.
Nf5 {[%clk 0:02:11.6]} 18... Re8 {[%clk 0:01:29.6]} 19. Na4 {[%clk 0:00:54.8]}
19... Ne4 {[%clk 0:01:24]} 20. Qd1 {[%clk 0:00:55.3]} 20... Bf8 {[%clk
0:01:09.3]} 21. Rc1 {[%clk 0:00:53.8]} 21... Bxe2 {[%clk 0:01:03.5]} 22. Qxe2
{[%clk 0:00:54.7]} 22... Qf6 {[%clk 0:01:00.1]} 23. Qg4 {[%clk 0:00:33.6]} 23...
Kh7 {[%clk 0:00:40.2]} 24. Nb6 {[%clk 0:00:33.3]} 24... Ra6 {[%clk 0:00:34.1]}
25. Nd7 {[%clk 0:00:18.5]} 25... Qg6 {[%clk 0:00:26.5]} 26. Qf3 {[%clk
0:00:18.5]} 26... f6 {[%clk 0:00:15.2]} 27. h4 {[%clk 0:00:12.8]} 27... h5
{[%clk 0:00:14.3]} 28. Nb6 {[%clk 0:00:07.8]} 28... Qg4 {[%clk 0:00:11.9]} 29.
Qxg4 {[%clk 0:00:07.3]} 29... hxg4 {[%clk 0:00:12.8]} 30. g3 {[%clk 0:00:07.9]}
30... g6 {[%clk 0:00:10.4]} 31. Nd6 {[%clk 0:00:08.1]} 31... Bxd6 {[%clk
0:00:08.4]} 32. cxd6 {[%clk 0:00:09]} 32... Rxb6 {[%clk 0:00:08.7]} 33. Rc7+
{[%clk 0:00:09.7]} 33... Kg8 {[%clk 0:00:07.8]} 34. d7 {[%clk 0:00:10.3]} 34...
Rd8 {[%clk 0:00:07.6]} 35. Rc8 {[%clk 0:00:10.9]} 35... Kf7 {[%clk 0:00:06.9]}
36. Rxd8 {[%clk 0:00:11]} 36... Rd6 {[%clk 0:00:07.4]} 37. Bf4 {[%clk
0:00:11.3]} 37... Nc6 {[%clk 0:00:05.7]} 38. Bxd6 {[%clk 0:00:11.3]} 38... Nxd8
{[%clk 0:00:05.5]} 39. Bc7 {[%clk 0:00:11.9]} 39... Ke7 {[%clk 0:00:05.7]} 40.
Bxd8+ {[%clk 0:00:09.2]} 40... Kxd8 {[%clk 0:00:06.6]} 41. Rxa5 {[%clk
0:00:09.8]} 41... Kxd7 {[%clk 0:00:07.2]} 42. Rxd5+ {[%clk 0:00:10.3]} 42... Nd6
{[%clk 0:00:07.1]} 43. h5 {[%clk 0:00:09.9]} 43... Ke6 {[%clk 0:00:04.8]} 44.
hxg6 {[%clk 0:00:09]} 44... f5 {[%clk 0:00:01.9]} 45. Rxd6+ {[%clk 0:00:08.9]}
45... Kxd6 {[%clk 0:00:02.5]} 46. g7 {[%clk 0:00:09.4]} 1-0

[Event "Early-Titled-Tuesday-Blitz-January-30-2024"]
[Site "Chess.com"]
[Date "2024.01.30"]
[Round "1"]
[White "deribas12345"]
[Black "WhiteKnight2612"]
[Result "1-0"]
[WhiteElo "2484"]
[BlackElo "2823"]
[TimeControl "180+1"]
[EndTime "8:08:11 PST"]
[Termination "deribas12345 won by resignation"]

1. d4 {[%clk 0:03:00.9]} 1... Nf6 {[%clk 0:02:58.7]} 2. c4 {[%clk 0:02:58.9]}
2... e6 {[%clk 0:02:58.9]} 3. Nc3 {[%clk 0:02:57.4]} 3... Bb4 {[%clk 0:02:59.5]}
4. a3 {[%clk 0:02:56.4]} 4... Bxc3+ {[%clk 0:02:58]} 5. bxc3 {[%clk 0:02:56.2]}
5... c5 {[%clk 0:02:48.4]} 6. f3 {[%clk 0:02:55.6]} 6... d5 {[%clk 0:02:43.5]}
7. e3 {[%clk 0:02:55.4]} 7... O-O {[%clk 0:02:38]} 8. Bd3 {[%clk 0:02:54.8]}
8... Qc7 {[%clk 0:02:35.8]} 9. cxd5 {[%clk 0:02:54.1]} 9... cxd4 {[%clk
0:02:32.2]} 10. Ne2 {[%clk 0:02:39]} 10... dxe3 {[%clk 0:02:25.6]} 11. dxe6
{[%clk 0:02:29.4]} 11... Bxe6 {[%clk 0:02:22.6]} 12. Bxe3 {[%clk 0:02:28.7]}
12... Nc6 {[%clk 0:02:20.9]} 13. O-O {[%clk 0:02:27.1]} 13... Rad8 {[%clk
0:02:20.9]} 14. Nd4 {[%clk 0:02:09.5]} 14... Nd5 {[%clk 0:02:15.3]} 15. Nxe6
{[%clk 0:02:08.7]} 15... fxe6 {[%clk 0:02:09.5]} 16. Bc5 {[%clk 0:02:03.7]}
16... Rf6 {[%clk 0:02:00.7]} 17. Qc2 {[%clk 0:01:49.6]} 17... Rh6 {[%clk
0:02:00.2]} 18. g3 {[%clk 0:01:45.7]} 18... Ne5 {[%clk 0:01:51.7]} 19. Bd4
{[%clk 0:01:26.3]} 19... Nxd3 {[%clk 0:01:32.2]} 20. Qxd3 {[%clk 0:01:26.2]}
20... e5 {[%clk 0:01:30.8]} 21. Bf2 {[%clk 0:01:24.5]} 21... Nxc3 {[%clk
0:01:29.2]} 22. Qc2 {[%clk 0:01:20]} 22... Rc6 {[%clk 0:01:22.9]} 23. Rae1
{[%clk 0:01:19.4]} 23... h6 {[%clk 0:01:18.8]} 24. Qb3+ {[%clk 0:01:16]} 24...
Kh8 {[%clk 0:01:15.5]} 25. Re3 {[%clk 0:00:57.8]} 25... Rd2 {[%clk 0:00:52]} 26.
Rfe1 {[%clk 0:00:50.9]} 26... e4 {[%clk 0:00:51.2]} 27. Qb4 {[%clk 0:00:37.8]}
27... Qe5 {[%clk 0:00:32.9]} 28. Qxb7 {[%clk 0:00:19.2]} 28... Rc2 {[%clk
0:00:25.4]} 29. Qa8+ {[%clk 0:00:08.3]} 29... Kh7 {[%clk 0:00:25.1]} 30. Kg2
{[%clk 0:00:05.1]} 30... exf3+ {[%clk 0:00:22.4]} 31. Kh1 {[%clk 0:00:04.7]}
31... Qd5 {[%clk 0:00:20.4]} 32. Re8 {[%clk 0:00:03.8]} 32... Rxf2 {[%clk
0:00:18.4]} 33. Rh8+ {[%clk 0:00:03.7]} 33... Kg6 {[%clk 0:00:19]} 34. Qe8+
{[%clk 0:00:04.6]} 34... Kg5 {[%clk 0:00:13.7]} 35. Re5+ {[%clk 0:00:03.6]}
35... Qxe5 {[%clk 0:00:08.3]} 36. Qxe5+ {[%clk 0:00:03.6]} 36... Kg6 {[%clk
0:00:09.2]} 37. Qe8+ {[%clk 0:00:02.7]} 37... Kg5 {[%clk 0:00:09.2]} 38. Qe7+
{[%clk 0:00:02.3]} 38... Rf6 {[%clk 0:00:07.6]} 39. Qxg7+ {[%clk 0:00:01.9]}
39... Kf5 {[%clk 0:00:08.5]} 40. Qd7+ {[%clk 0:00:01.6]} 40... Re6 {[%clk
0:00:07.6]} 41. Rf8+ {[%clk 0:00:01.3]} 41... Ke5 {[%clk 0:00:08.1]} 42. Qc7+
{[%clk 0:00:01.9]} 42... Kd4 {[%clk 0:00:08.5]} 43. Rd8+ {[%clk 0:00:02]} 43...
Nd5 {[%clk 0:00:09]} 44. Qxa7+ {[%clk 0:00:01.9]} 44... Kd3 {[%clk 0:00:08.8]}
45. Qxf2 {[%clk 0:00:01.4]} 45... Re1+ {[%clk 0:00:08.9]} 46. Qxe1 {[%clk
0:00:01.5]} 1-0

[Event "Early-Titled-Tuesday-Blitz-January-30-2024"]
[Site "Chess.com"]
[Date "2024.01.30"]
[Round "1"]
[White "EdmundPlayer"]
[Black "TimGrutter03"]
[Result "0-1"]
[WhiteElo "2260"]
[BlackElo "2609"]
[TimeControl "180+1"]
[EndTime "8:08:11 PST"]
[Termination "TimGrutter03 won by resignation"]

1. Nc3 {[%clk 0:02:54.4]} 1... Nc6 {[%clk 0:02:59.5]} 2. e4 {[%clk 0:02:52.3]}
2... d6 {[%clk 0:02:59.2]} 3. f4 {[%clk 0:02:39.3]} 3... g6 {[%clk 0:02:59.4]}
4. Nf3 {[%clk 0:02:39.3]} 4... Bg7 {[%clk 0:02:59.4]} 5. Bc4 {[%clk 0:02:27.3]}
5... e6 {[%clk 0:02:52.7]} 6. O-O {[%clk 0:02:24.1]} 6... Nge7 {[%clk
0:02:51.2]} 7. d3 {[%clk 0:02:09.6]} 7... Na5 {[%clk 0:02:48.3]} 8. Bb3 {[%clk
0:02:02.1]} 8... Nxb3 {[%clk 0:02:48.3]} 9. axb3 {[%clk 0:02:03]} 9... O-O
{[%clk 0:02:44.6]} 10. Be3 {[%clk 0:02:02.1]} 10... b6 {[%clk 0:02:37.8]} 11.
Qd2 {[%clk 0:01:39]} 11... Bb7 {[%clk 0:02:36]} 12. Rae1 {[%clk 0:01:27.3]}
12... c5 {[%clk 0:02:29.9]} 13. d4 {[%clk 0:01:24.8]} 13... cxd4 {[%clk
0:02:18.6]} 14. Bxd4 {[%clk 0:01:24]} 14... Bxd4+ {[%clk 0:02:17.4]} 15. Nxd4
{[%clk 0:01:20.6]} 15... Nc6 {[%clk 0:02:18.3]} 16. Ndb5 {[%clk 0:01:16.7]}
16... Ba6 {[%clk 0:02:10.2]} 17. Rf2 {[%clk 0:01:15.6]} 17... d5 {[%clk
0:02:00.2]} 18. exd5 {[%clk 0:01:11.3]} 18... exd5 {[%clk 0:02:01.1]} 19. Nd4
{[%clk 0:01:10.6]} 19... Bb7 {[%clk 0:01:52]} 20. f5 {[%clk 0:01:05.7]} 20...
Qh4 {[%clk 0:01:35.9]} 21. Rf4 {[%clk 0:00:58.7]} 21... Qg5 {[%clk 0:01:25.8]}
22. h4 {[%clk 0:00:41.6]} 22... Qh6 {[%clk 0:00:59.1]} 23. Nxc6 {[%clk
0:00:35.4]} 23... Bxc6 {[%clk 0:00:59]} 24. Ne2 {[%clk 0:00:34]} 24... Rfe8
{[%clk 0:00:53.9]} 25. g3 {[%clk 0:00:26.6]} 25... Re4 {[%clk 0:00:28.1]} 26.
Ref1 {[%clk 0:00:20.1]} 26... Bb5 {[%clk 0:00:24.8]} 27. c4 {[%clk 0:00:18.9]}
27... dxc4 {[%clk 0:00:20.3]} 28. Nc3 {[%clk 0:00:13.9]} 28... Rxf4 {[%clk
0:00:20.4]} 29. Rxf4 {[%clk 0:00:13]} 29... Bc6 {[%clk 0:00:14.7]} 30. bxc4
{[%clk 0:00:11.4]} 30... Re8 {[%clk 0:00:15.2]} 31. Nd5 {[%clk 0:00:10.4]} 31...
Bxd5 {[%clk 0:00:12.7]} 32. cxd5 {[%clk 0:00:10.5]} 32... Qf8 {[%clk 0:00:12.6]}
33. d6 {[%clk 0:00:10.3]} 33... Rd8 {[%clk 0:00:12.7]} 34. Rd4 {[%clk
0:00:07.2]} 34... Qg7 {[%clk 0:00:12.7]} 35. d7 {[%clk 0:00:06.7]} 35... Qe5
{[%clk 0:00:12.3]} 36. Kf2 {[%clk 0:00:06.2]} 36... Qxf5+ {[%clk 0:00:11.7]} 37.
Rf4 {[%clk 0:00:05.6]} 37... Qxd7 {[%clk 0:00:11.8]} 38. Qxd7 {[%clk 0:00:04.7]}
38... Rxd7 {[%clk 0:00:12.7]} 39. Ke3 {[%clk 0:00:05.1]} 39... Kg7 {[%clk
0:00:11.4]} 40. Rb4 {[%clk 0:00:04.8]} 40... h5 {[%clk 0:00:11.4]} 41. Ra4
{[%clk 0:00:04.8]} 41... Kf6 {[%clk 0:00:11.5]} 42. Ra6 {[%clk 0:00:04.8]} 42...
Ke5 {[%clk 0:00:11.2]} 43. b3 {[%clk 0:00:04]} 43... f5 {[%clk 0:00:10.8]} 44.
Ra4 {[%clk 0:00:03.6]} 44... Rc7 {[%clk 0:00:10.8]} 45. Rb4 {[%clk 0:00:03.2]}
45... Rc3+ {[%clk 0:00:10.3]} 46. Kf2 {[%clk 0:00:03.6]} 46... Kd5 {[%clk
0:00:08.8]} 47. Kg2 {[%clk 0:00:03.5]} 47... Kc5 {[%clk 0:00:08.9]} 48. Ra4
{[%clk 0:00:03.5]} 48... a5 {[%clk 0:00:09.1]} 49. Ra1 {[%clk 0:00:02.2]} 49...
Rxb3 {[%clk 0:00:09.2]} 50. Re1 {[%clk 0:00:03.1]} 50... Rd3 {[%clk 0:00:09]}
51. Re6 {[%clk 0:00:02.8]} 51... Rd6 {[%clk 0:00:09.2]} 52. Re7 {[%clk
0:00:03.7]} 52... a4 {[%clk 0:00:08.8]} 53. Rc7+ {[%clk 0:00:04.6]} 53... Kb4
{[%clk 0:00:09.1]} 54. Ra7 {[%clk 0:00:05.5]} 54... a3 {[%clk 0:00:08.5]} 55.
Kf3 {[%clk 0:00:06.4]} 55... b5 {[%clk 0:00:08.1]} 56. Ke3 {[%clk 0:00:07.3]}
56... Kb3 {[%clk 0:00:08.5]} 57. Ra6 {[%clk 0:00:07.2]} 57... Rxa6 {[%clk
0:00:08.4]} 0-1

[Event "Early-Titled-Tuesday-Blitz-January-30-2024"]
[Site "Chess.com"]
[Date "2024.01.30"]
[Round "1"]
[White "falzehope0"]
[Black "jk13"]
[Result "0-1"]
[WhiteElo "2376"]
[BlackElo "2698"]
[TimeControl "180+1"]
[EndTime "8:08:12 PST"]
[Termination "jk13 won by checkmate"]

1. d4 {[%clk 0:02:52.2]} 1... Nf6 {[%clk 0:02:59.7]} 2. e3 {[%clk 0:02:51.5]}
2... e6 {[%clk 0:03:00.1]} 3. Bd3 {[%clk 0:02:45.6]} 3... d5 {[%clk 0:03:00.1]}
4. f4 {[%clk 0:02:45.5]} 4... b6 {[%clk 0:02:59]} 5. c3 {[%clk 0:02:44.8]} 5...
Be7 {[%clk 0:02:58.1]} 6. Nf3 {[%clk 0:02:41.3]} 6... O-O {[%clk 0:02:58.7]} 7.
O-O {[%clk 0:02:18.8]} 7... Ba6 {[%clk 0:02:58.5]} 8. Bxa6 {[%clk 0:02:17.1]}
8... Nxa6 {[%clk 0:02:59.4]} 9. Nbd2 {[%clk 0:02:16]} 9... c5 {[%clk 0:02:59.5]}
10. Ne5 {[%clk 0:02:16.2]} 10... Nb8 {[%clk 0:02:56.8]} 11. Qf3 {[%clk
0:02:12.1]} 11... Qc7 {[%clk 0:02:53.1]} 12. g4 {[%clk 0:02:07.4]} 12... Nc6
{[%clk 0:02:52.3]} 13. g5 {[%clk 0:02:07.4]} 13... Nd7 {[%clk 0:02:52.4]} 14.
Qh5 {[%clk 0:02:07]} 14... f6 {[%clk 0:02:02.5]} 15. g6 {[%clk 0:01:47.4]} 15...
h6 {[%clk 0:01:59.5]} 16. Nf7 {[%clk 0:01:45.9]} 16... Rfe8 {[%clk 0:01:17.3]}
17. Nxh6+ {[%clk 0:01:23]} 17... gxh6 {[%clk 0:01:18.2]} 18. Qxh6 {[%clk
0:01:20]} 18... Nf8 {[%clk 0:01:16.7]} 19. Rf3 {[%clk 0:01:08.7]} 19... Bd6
{[%clk 0:01:14.8]} 20. g7 {[%clk 0:01:07.2]} 20... Re7 {[%clk 0:00:40.7]} 21.
Qh8+ {[%clk 0:00:36]} 21... Kf7 {[%clk 0:00:40.4]} 22. Rg3 {[%clk 0:00:29.4]}
22... Ng6 {[%clk 0:00:27.8]} 23. Rxg6 {[%clk 0:00:22.3]} 23... Kxg6 {[%clk
0:00:17.5]} 24. g8=Q+ {[%clk 0:00:16.1]} 24... Rxg8 {[%clk 0:00:18]} 25. Qxg8+
{[%clk 0:00:16.5]} 25... Rg7 {[%clk 0:00:18.5]} 26. Qe8+ {[%clk 0:00:13]} 26...
Qf7 {[%clk 0:00:16.8]} 27. Qxf7+ {[%clk 0:00:12.9]} 27... Kxf7+ {[%clk
0:00:16.7]} 28. Kf1 {[%clk 0:00:13.1]} 28... Rh7 {[%clk 0:00:16.8]} 29. Nf3
{[%clk 0:00:12.4]} 29... Ne7 {[%clk 0:00:15.9]} 30. Bd2 {[%clk 0:00:11.7]} 30...
Nf5 {[%clk 0:00:16.4]} 31. Kg2 {[%clk 0:00:11.9]} 31... Rg7+ {[%clk 0:00:16.4]}
32. Kf2 {[%clk 0:00:12.1]} 32... Rh7 {[%clk 0:00:17]} 33. Rg1 {[%clk 0:00:11.4]}
33... Bf8 {[%clk 0:00:17]} 34. Rg2 {[%clk 0:00:11.6]} 34... Nd6 {[%clk
0:00:17.3]} 35. Be1 {[%clk 0:00:10.3]} 35... Ne4+ {[%clk 0:00:17.8]} 36. Ke2
{[%clk 0:00:10.9]} 36... Be7 {[%clk 0:00:17.5]} 37. Nd2 {[%clk 0:00:11]} 37...
Nd6 {[%clk 0:00:16.8]} 38. Kd3 {[%clk 0:00:10.7]} 38... f5 {[%clk 0:00:16.8]}
39. b3 {[%clk 0:00:10.2]} 39... Bf6 {[%clk 0:00:16.3]} 40. Nf3 {[%clk
0:00:09.4]} 40... Ne4 {[%clk 0:00:16.5]} 41. Ne5+ {[%clk 0:00:09.5]} 41... Bxe5
{[%clk 0:00:16.8]} 42. dxe5 {[%clk 0:00:10.4]} 42... Rh3 {[%clk 0:00:16.5]} 43.
c4 {[%clk 0:00:08.9]} 43... Rf3 {[%clk 0:00:15.4]} 44. cxd5 {[%clk 0:00:08]}
44... exd5 {[%clk 0:00:16.3]} 45. Ke2 {[%clk 0:00:05.6]} 45... Rh3 {[%clk
0:00:16.2]} 46. Kd3 {[%clk 0:00:05.5]} 46... b5 {[%clk 0:00:15.1]} 47. Ke2
{[%clk 0:00:05.9]} 47... b4 {[%clk 0:00:12.9]} 48. Kd3 {[%clk 0:00:06]} 48... a5
{[%clk 0:00:13.2]} 49. Bd2 {[%clk 0:00:04.9]} 49... Rh6 {[%clk 0:00:11.9]} 50.
Be1 {[%clk 0:00:05]} 50... Rc6 {[%clk 0:00:11]} 51. Bd2 {[%clk 0:00:05.1]} 51...
c4+ {[%clk 0:00:11.1]} 52. bxc4 {[%clk 0:00:06]} 52... dxc4+ {[%clk 0:00:11.2]}
53. Ke2 {[%clk 0:00:05.8]} 53... c3 {[%clk 0:00:11.4]} 54. Bc1 {[%clk
0:00:05.8]} 54... Rc8 {[%clk 0:00:10.8]} 55. Kd3 {[%clk 0:00:05.8]} 55... a4
{[%clk 0:00:10.4]} 56. Rg1 {[%clk 0:00:03.7]} 56... b3 {[%clk 0:00:10.1]} 57.
axb3 {[%clk 0:00:04.5]} 57... axb3 {[%clk 0:00:10.8]} 58. Rg2 {[%clk 0:00:04.3]}
58... Rb8 {[%clk 0:00:10.3]} 59. Ke2 {[%clk 0:00:02.7]} 59... b2 {[%clk
0:00:10.5]} 60. Bxb2 {[%clk 0:00:03.4]} 60... cxb2 {[%clk 0:00:10.9]} 61. Rg1
{[%clk 0:00:03.9]} 61... b1=Q {[%clk 0:00:11.1]} 62. Rxb1 {[%clk 0:00:04.8]}
62... Rxb1 {[%clk 0:00:11]} 63. Kf3 {[%clk 0:00:05.2]} 63... Rb2 {[%clk
0:00:11]} 64. h4 {[%clk 0:00:05]} 64... Rf2# {[%clk 0:00:11.9]} 0-1